bitfinex-derivatives/quotes_BTCF0:USTF0_20250823
["timestamp","ask_amount","ask_price","bid_price","bid_amount"]
[1755955669669,1.85807005,115130.0,115120.0,0.60979841]
[1755955670968,1.85807005,115130.0,115120.0,0.60985584]
[1755955672266,1.85807005,115130.0,115120.0,0.3608]
[1755955672267,2.34733305,115130.0,115120.0,0.3608]
[1755955672471,0.1336322,115110.0,115100.0,0.31200954]
[1755955672671,1.8258052,115110.0,115100.0,0.16676143]
[1755955673066,1.8258052,115110.0,115100.0,0.07827919]
[1755955673772,1.8268052,115110.0,115100.0,0.07927919]
[1755955674273,1.8268052,115110.0,115100.0,0.11393919]
[1755955674468,0.5374022,115110.0,115100.0,0.09589919]
[1755955674670,0.9354222,115110.0,115100.0,1.06673199]
[1755955674977,1.4588252,115110.0,115100.0,1.06673199]
[1755955675466,1.52607621,115110.0,115100.0,1.06673199]
[1755955675662,1.52607621,115110.0,115100.0,0.70593199]
[1755955676570,1.52607621,115110.0,115100.0,0.81542423]
[1755955676774,1.52607621,115110.0,115100.0,0.81542403]
[1755955678690,1.52607621,115110.0,115100.0,0.70593179]
[1755955678989,1.52607621,115110.0,115100.0,0.81542403]
[1755955680292,1.52607621,115110.0,115100.0,0.32696103]
[1755955680491,1.53525621,115110.0,115100.0,0.32696103]
[1755955682494,1.04679321,115110.0,115100.0,0.32696103]
[1755955682695,0.73431621,115110.0,115100.0,0.32696103]
[1755955682894,1.52615621,115110.0,115100.0,0.32696103]
[1755955683295,1.52515621,115110.0,115100.0,0.32596103]
[1755955683494,1.52615621,115110.0,115100.0,0.32596103]
[1755955684398,1.52615621,115110.0,115100.0,0.21646879]
[1755955684797,1.52615621,115110.0,115100.0,0.70493179]
[1755955684990,1.52615621,115110.0,115100.0,0.6947428]
[1755955685188,1.52615621,115110.0,115100.0,0.70493179]
[1755955685389,1.55457012,115110.0,115100.0,0.15107879]
[1755955685590,1.55457012,115110.0,115100.0,0.21337879]
[1755955689302,1.06610712,115110.0,115100.0,0.21337879]
[1755955689498,1.55457012,115110.0,115100.0,0.16702879]
[1755955691998,1.55457012,115110.0,115100.0,0.27652103]
[1755955693600,1.06610712,115110.0,115100.0,0.27652103]
[1755955693794,1.55457012,115110.0,115100.0,0.27652103]
[1755955697111,1.53533621,115110.0,115100.0,0.27652103]
[1755955697802,1.53533621,115110.0,115100.0,0.27652115]
[1755955698510,1.89613621,115110.0,115100.0,0.27652115]
[1755955699303,1.89613621,115110.0,115100.0,0.16702891]
[1755955700811,1.89613621,115110.0,115100.0,0.08011924]
[1755955701012,1.89613621,115110.0,115100.0,0.06416924]
[1755955702509,1.89613621,115110.0,115100.0,0.17366148]
[1755955702711,1.89613621,115110.0,115100.0,0.16347224]
[1755955703916,1.89613621,115110.0,115100.0,0.25038214]
[1755955704412,1.40767321,115110.0,115100.0,0.25038214]
[1755955704613,1.89613621,115110.0,115100.0,0.25038214]
[1755955705009,1.9153393,115110.0,115100.0,0.25038214]
[1755955705210,1.9153393,115110.0,115100.0,0.1408899]
[1755955709714,1.9153393,115110.0,115100.0,0.05398]
[1755955710621,1.9153393,115110.0,115100.0,0.03297]
[1755955711116,1.9153393,115110.0,115100.0,0.02393]
[1755955711316,1.5562995,115110.0,115100.0,0.6955229]
[1755955711716,1.5562995,115110.0,115100.0,0.80501514]
[1755955712225,1.5562995,115110.0,115100.0,0.6955229]
[1755955712522,1.5562995,115110.0,115100.0,0.80501514]
[1755955712919,1.5562995,115110.0,115100.0,0.2070599]
[1755955713115,1.5552995,115110.0,115100.0,0.2070599]
[1755955713319,1.5562995,115110.0,115100.0,0.2070599]
[1755955713519,1.5562995,115110.0,115100.0,0.1727299]
[1755955713721,1.5562995,115110.0,115100.0,0.1580399]
[1755955714420,1.5562995,115110.0,115100.0,0.03307]
[1755955714626,1.5562995,115110.0,115100.0,0.1108399]
[1755955716930,1.5562995,115110.0,115100.0,0.22033214]
[1755955717726,1.5562995,115110.0,115100.0,0.1108399]
[1755955718026,1.5562995,115110.0,115100.0,0.13346459]
[1755955718214,1.9170995,115110.0,115100.0,0.22037449]
[1755955719021,1.9170995,115110.0,115100.0,0.1108399]
[1755955720028,1.9170995,115110.0,115100.0,0.1199799]
[1755955721128,0.6368365,115110.0,115100.0,0.1199799]
[1755955721327,1.9170595,115110.0,115100.0,0.1199799]
[1755955722125,1.9170595,115110.0,115100.0,0.1108399]
[1755955722727,1.1252995,115110.0,115100.0,0.1108399]
[1755955722924,1.9170595,115110.0,115100.0,0.1108399]
[1755955723731,1.1252995,115110.0,115100.0,0.1108399]
[1755955724036,1.9170595,115110.0,115100.0,0.1108399]
[1755955725037,1.9170595,115110.0,115100.0,0.1199799]
[1755955727232,1.10609641,115110.0,115100.0,0.1419399]
[1755955727438,1.89781641,115110.0,115100.0,0.1199799]
[1755955728633,1.89781641,115110.0,115100.0,0.1419399]
[1755955730335,1.89781641,115110.0,115100.0,0.1727299]
[1755955730336,1.53701641,115110.0,115100.0,0.1727299]
[1755955730533,1.53701641,115110.0,115100.0,0.2070599]
[1755955730732,1.53701641,115110.0,115100.0,0.1923699]
[1755955731243,1.53701641,115110.0,115100.0,0.1580399]
[1755955733533,1.53701641,115110.0,115100.0,0.2070599]
[1755955735438,1.53697641,115110.0,115100.0,0.2070599]
[1755955736539,0.74529641,115110.0,115100.0,0.2070599]
[1755955736742,1.53693641,115110.0,115100.0,0.2070599]
[1755955741553,1.04847341,115110.0,115100.0,0.2070599]
[1755955741757,1.53693641,115110.0,115100.0,0.6955229]
[1755955742356,1.53693641,115110.0,115100.0,0.2070599]
[1755955744754,1.53693641,115110.0,115100.0,0.02393]
[1755955744951,0.99552341,115110.0,115100.0,0.0869099]
[1755955745154,1.48398641,115110.0,115100.0,0.0869099]
[1755955745360,1.48398641,115110.0,115100.0,0.1111899]
[1755955745659,1.53634641,115110.0,115100.0,0.1111899]
[1755955746162,1.53634641,115110.0,115100.0,0.22072449]
[1755955746554,1.53634641,115110.0,115100.0,0.1111899]
[1755955747357,1.04788341,115110.0,115100.0,0.1111899]
[1755955747657,1.53634641,115110.0,115100.0,0.1111899]
[1755955748764,1.53634641,115110.0,115100.0,0.1208799]
[1755955748954,1.53634641,115110.0,115100.0,0.1432699]
[1755955749267,1.53634641,115110.0,115100.0,0.2067699]
[1755955750262,0.74470641,115110.0,115100.0,0.2067699]
[1755955750464,1.53626641,115110.0,115100.0,0.2067699]
[1755955750764,1.04780341,115110.0,115100.0,0.2067699]
[1755955750965,1.53626641,115110.0,115100.0,0.2067699]
[1755955751468,1.53622641,115110.0,115100.0,0.31630086]
[1755955751958,1.53622641,115110.0,115100.0,0.26806086]
[1755955752765,1.53622641,115110.0,115100.0,0.23041086]
[1755955753260,1.53622641,115110.0,115100.0,0.1208799]
[1755955753862,1.53622641,115110.0,115100.0,0.1111899]
[1755955754168,1.9162677,115110.0,115100.0,0.02428]
[1755955754562,1.9162677,115110.0,115100.0,0.1111899]
[1755955756169,1.9162677,115110.0,115100.0,0.02428]
[1755955756568,0.1341899,115100.0,115090.0,0.47171244]
[1755955756775,0.6750129,115100.0,115090.0,0.6279134]
[1755955757075,0.6750129,115100.0,115090.0,0.6771834]
[1755955757566,0.6750129,115100.0,115090.0,0.56765244]
[1755955757868,0.6770129,115100.0,115090.0,0.56765244]
[1755955758262,0.6770129,115100.0,115090.0,0.53364244]
[1755955758568,0.6770129,115100.0,115090.0,0.6771834]
[1755955758772,0.6770129,115100.0,115090.0,0.53364244]
[1755955759069,0.6780129,115100.0,115090.0,0.56765244]
[1755955759259,0.6780129,115100.0,115090.0,0.51941514]
[1755955759464,0.6780129,115100.0,115090.0,0.11993764]
[1755955759663,0.6780129,115100.0,115090.0,0.08592764]
[1755955760174,0.6780129,115100.0,115090.0,0.20685514]
[1755955760574,0.74526391,115100.0,115090.0,0.20685514]
[1755955762171,0.74526391,115100.0,115090.0,0.11993764]
[1755955762477,0.74526391,115100.0,115090.0,0.20685514]
[1755955762676,0.74526391,115100.0,115090.0,0.11993764]
[1755955763574,0.74526391,115100.0,115090.0,0.07169764]
[1755955763869,0.74526391,115100.0,115090.0,0.03404764]
[1755955764479,0.74526391,115100.0,115090.0,0.05643764]
[1755955764671,0.74526391,115100.0,115090.0,0.07169764]
[1755955764976,0.74526391,115100.0,115090.0,0.11993764]
[1755955765176,0.74526391,115100.0,115090.0,0.1954586]
[1755955765669,0.74526391,115100.0,115090.0,0.08592764]
[1755955766274,0.74526391,115100.0,115090.0,0.11993764]
[1755955767076,0.74526391,115100.0,115090.0,0.2294686]
[1755955767276,0.74526391,115100.0,115090.0,0.11993764]
[1755955768478,0.74526391,115100.0,115090.0,0.20685504]
[1755955768666,0.74526391,115100.0,115090.0,0.02435764]
[1755955768867,0.1850274,115090.0,115080.0,0.10953096]
[1755955769072,0.0869325,115070.0,115060.0,0.09463774]
[1755955769266,1.7276355,115070.0,115060.0,0.10893774]
[1755955769573,1.7276355,115070.0,115060.0,0.09463774]
[1755955769878,1.7276355,115070.0,115060.0,0.04683774]
[1755955770378,2.07264892,115070.0,115060.0,0.02312774]
[1755955771173,1.76971192,115070.0,115060.0,0.02312774]
[1755955771475,1.46157181,115070.0,115060.0,0.04683774]
[1755955771675,2.25401181,115070.0,115060.0,0.04683774]
[1755955771876,1.46257181,115070.0,115060.0,0.04683774]
[1755955772079,2.25401181,115070.0,115060.0,0.04683774]
[1755955772977,2.25401181,115070.0,115060.0,0.02312774]
[1755955773478,2.25601181,115070.0,115060.0,0.02312774]
[1755955777478,2.50601181,115070.0,115060.0,0.02312774]
[1755955778184,1.71457181,115070.0,115060.0,0.02312774]
[1755955778376,2.50609181,115070.0,115060.0,0.02312774]
[1755955780679,2.01762881,115070.0,115060.0,0.02312774]
[1755955780886,2.50609181,115070.0,115060.0,0.02312774]
[1755955782481,1.71457181,115070.0,115060.0,0.02312774]
[1755955782680,2.50613181,115070.0,115060.0,0.04683774]
[1755955783392,2.01766881,115070.0,115060.0,0.04683774]
[1755955783583,2.50613181,115070.0,115060.0,0.04683774]
[1755955783784,1.71457181,115070.0,115060.0,0.04683774]
[1755955783985,2.50613181,115070.0,115060.0,0.04683774]
[1755955784287,2.01766881,115070.0,115060.0,0.04683774]
[1755955784488,2.50613181,115070.0,115060.0,0.04683774]
[1755955785293,1.71457181,115070.0,115060.0,0.04683774]
[1755955785493,2.50613181,115070.0,115060.0,0.04683774]
[1755955786287,2.50617181,115070.0,115060.0,0.04683774]
[1755955789095,1.71457181,115070.0,115060.0,0.04683774]
[1755955789290,2.50617181,115070.0,115060.0,0.04683774]
[1755955789495,2.50617181,115070.0,115060.0,0.05641774]
[1755955790797,2.50617181,115070.0,115060.0,0.04683774]
[1755955791895,1.71457181,115070.0,115060.0,0.04683774]
[1755955792095,2.50617181,115070.0,115060.0,0.04683774]
[1755955793697,2.01770881,115070.0,115060.0,0.04683774]
[1755955793899,2.50617181,115070.0,115060.0,0.04683774]
[1755955796298,2.50617181,115070.0,115060.0,0.02312774]
[1755955797098,2.52992343,115070.0,115060.0,0.04683774]
[1755955798201,0.99986043,115070.0,115060.0,0.09508774]
[1755955798398,0.99783524,115070.0,115060.0,0.48151934]
[1755955798600,1.51604924,115070.0,115060.0,0.96998234]
[1755955798800,0.94065224,115070.0,115060.0,0.96998234]
[1755955799000,0.94065224,115070.0,115060.0,0.71998234]
[1755955799201,1.42911524,115070.0,115060.0,0.71998234]
[1755955799703,0.94065224,115070.0,115060.0,0.71998234]
[1755955800104,1.42911524,115070.0,115060.0,0.71998234]
[1755955800704,0.94065224,115070.0,115060.0,0.71998234]
[1755955801006,0.9318939,115070.0,115060.0,1.33078234]
[1755955801705,0.9318139,115070.0,115060.0,1.33078234]
[1755955802005,0.9322139,115070.0,115060.0,1.83078234]
[1755955802197,0.1397739,115070.0,115060.0,1.83078234]
[1755955802603,0.9321739,115070.0,115060.0,1.83078234]
[1755955803415,0.1397739,115070.0,115060.0,1.83078234]
[1755955803711,0.9321339,115070.0,115060.0,1.83078234]
[1755955804299,0.1397739,115070.0,115060.0,1.83078234]
[1755955804704,0.9320939,115070.0,115060.0,1.83078234]
[1755955805710,0.1397739,115070.0,115060.0,1.83078234]
[1755955805915,0.9320139,115070.0,115060.0,1.34231934]
[1755955806110,0.9320139,115070.0,115060.0,1.83078234]
[1755955806307,1.5074509,115070.0,115060.0,0.64377774]
[1755955806502,1.8682509,115070.0,115060.0,0.60913774]
[1755955806911,1.8690509,115070.0,115060.0,0.55630774]
[1755955807107,1.88849291,115070.0,115060.0,0.04683774]
[1755955807614,2.13849291,115070.0,115060.0,0.02312774]
[1755955809714,1.65002991,115070.0,115060.0,0.02312774]
[1755955810014,2.13849291,115070.0,115060.0,0.02312774]
[1755955810511,2.1400676,115070.0,115060.0,0.02312774]
[1755955810718,0.0869891,115050.0,115040.0,0.02361]
[1755955811016,1.75086819,115050.0,115040.0,0.02361]
[1755955811210,1.75086819,115050.0,115040.0,0.06891953]
[1755955811915,1.75086819,115050.0,115040.0,0.04530953]
[1755955812116,1.75186819,115050.0,115040.0,0.06891953]
[1755955812311,1.75386819,115050.0,115040.0,0.06891953]
[1755955812519,1.75386819,115050.0,115040.0,0.13571953]
[1755955812722,1.2641905,115050.0,115040.0,0.16574953]
[1755955813031,1.2643905,115050.0,115040.0,0.16574953]
[1755955814330,0.4704705,115050.0,115040.0,0.16574953]
[1755955814524,1.2644305,115050.0,115040.0,0.16574953]
[1755955815023,0.4704705,115050.0,115040.0,0.16574953]
[1755955815226,0.53772151,115050.0,115040.0,0.16574953]
[1755955815424,1.33216151,115050.0,115040.0,0.16574953]
[1755955815928,1.8221992,115050.0,115040.0,0.11705953]
[1755955816426,1.8221992,115050.0,115040.0,0.07838953]
[1755955817731,1.8221992,115050.0,115040.0,0.06891953]
[1755955819227,2.4329992,115050.0,115040.0,0.04530953]
[1755955820425,2.4329992,115050.0,115040.0,0.06891953]
[1755955821038,2.4329992,115050.0,115040.0,0.04530953]
[1755955824038,2.54559793,115050.0,115040.0,0.04530953]
[1755955825034,2.29559793,115050.0,115040.0,0.04530953]
[1755955825243,2.29559793,115050.0,115040.0,0.02264913]
[1755955826042,0.0869966,115040.0,115030.0,0.0319177]
[1755955826238,0.93783429,115040.0,115030.0,0.0319177]
[1755955827541,0.93983429,115040.0,115030.0,0.0319177]
[1755955828443,0.94083429,115040.0,115030.0,0.0319177]
[1755955828937,0.93983429,115040.0,115030.0,0.0319177]
[1755955829143,0.94083429,115040.0,115030.0,0.0319177]
[1755955830345,1.0080853,115040.0,115030.0,0.0319177]
[1755955831948,1.2580853,115040.0,115030.0,0.0083077]
[1755955832943,1.2580853,115040.0,115030.0,0.0321477]
[1755955833636,2.9114053,115040.0,115030.0,0.0083077]
[1755955836348,0.0869628,115030.0,115020.0,0.02384]
[1755955836550,1.75485084,115030.0,115020.0,0.02384]
[1755955837546,1.26581315,115030.0,115020.0,0.02384]
[1755955837747,1.75785084,115030.0,115020.0,0.02384]
[1755955840248,1.82510185,115030.0,115020.0,0.0374376]
[1755955840550,1.82510185,115030.0,115020.0,0.02384]
[1755955842650,1.82510185,115030.0,115020.0,0.03341]
[1755955843646,1.82510185,115030.0,115020.0,0.08545]
[1755955843849,1.82510185,115030.0,115020.0,0.11956]
[1755955848053,1.33506416,115030.0,115020.0,0.11956]
[1755955848258,1.33625427,115030.0,115020.0,0.11956]
[1755955848454,1.82629196,115030.0,115020.0,0.11956]
[1755955848959,1.33625427,115030.0,115020.0,0.11956]
[1755955849162,1.82629196,115030.0,115020.0,0.11956]
[1755955851058,1.82629196,115030.0,115020.0,0.08545]
[1755955852855,1.82629196,115030.0,115020.0,0.11956]
[1755955853358,0.97949427,115030.0,115020.0,0.36956]
[1755955854467,1.34029427,115030.0,115020.0,0.36956]
[1755955854865,0.97949427,115030.0,115020.0,0.36956]
[1755955855067,1.34029427,115030.0,115020.0,0.36956]
[1755955855463,1.83033196,115030.0,115020.0,0.36956]
[1755955855761,1.46953196,115030.0,115020.0,0.36956]
[1755955858669,1.46953196,115030.0,115020.0,0.4565302]
[1755955858867,0.98072539,115030.0,115020.0,0.4565302]
[1755955859166,0.15959484,115030.0,115020.0,0.8173302]
[1755955859371,0.96167484,115030.0,115020.0,0.89541205]
[1755955859970,0.07263224,115030.0,115020.0,0.89621205]
[1755955860275,0.96151484,115030.0,115020.0,0.8173302]
[1755955860773,0.96151484,115030.0,115020.0,1.3173302]
[1755955861376,0.96155484,115030.0,115020.0,1.39541205]
[1755955861573,0.98056591,115030.0,115020.0,1.39541205]
[1755955861771,0.98064591,115030.0,115020.0,1.39541205]
[1755955861963,0.98064591,115030.0,115020.0,0.94764185]
[1755955862167,1.4706836,115030.0,115020.0,0.94764185]
[1755955862372,1.4706836,115030.0,115020.0,0.36956]
[1755955863077,0.98064591,115030.0,115020.0,0.456529]
[1755955863581,0.98064591,115030.0,115020.0,0.36956]
[1755955864384,1.4706836,115030.0,115020.0,0.11956]
[1755955864683,0.98064591,115030.0,115020.0,0.11956]
[1755955864865,1.4706836,115030.0,115020.0,0.19764185]
[1755955865072,1.4706836,115030.0,115020.0,0.11956]
[1755955865879,0.98064591,115030.0,115020.0,0.11956]
[1755955866475,0.98064591,115030.0,115020.0,0.2065291]
[1755955866773,0.98064591,115030.0,115020.0,0.5673291]
[1755955866979,0.96163484,115030.0,115020.0,0.11956]
[1755955867278,0.96163484,115030.0,115020.0,0.2065291]
[1755955867478,0.96163484,115030.0,115020.0,0.11956]
[1755955867673,0.15963484,115030.0,115020.0,0.11956]
[1755955867872,0.96547484,115030.0,115020.0,0.11956]
[1755955868078,1.47639622,115030.0,115020.0,0.19764185]
[1755955868276,1.83719622,115030.0,115020.0,0.07188]
[1755955868476,1.83719622,115030.0,115020.0,0.05638]
[1755955868680,0.18051743,115030.0,115020.0,0.2059891]
[1755955868881,0.18051743,115030.0,115020.0,0.5667891]
[1755955869067,0.98927743,115030.0,115020.0,0.47982]
[1755955869374,0.98927743,115030.0,115020.0,0.2059891]
[1755955870679,0.98927743,115030.0,115020.0,0.11902]
[1755955870880,1.35007743,115030.0,115020.0,0.11902]
[1755955871177,0.98927743,115030.0,115020.0,0.2059894]
[1755955874284,0.98927743,115030.0,115020.0,0.11902]
[1755955874484,1.35007743,115030.0,115020.0,0.11902]
[1755955874685,0.98927743,115030.0,115020.0,0.2059894]
[1755955876386,0.98883743,115030.0,115020.0,0.2059894]
[1755955877477,0.18051743,115030.0,115020.0,0.2059894]
[1755955877678,0.98843743,115030.0,115020.0,0.3059894]
[1755955877874,0.96993568,115030.0,115020.0,0.3059894]
[1755955878889,1.45997337,115030.0,115020.0,0.3059894]
[1755955879281,0.96993568,115030.0,115020.0,0.3059894]
[1755955880290,0.98929576,115030.0,115020.0,0.3059894]
[1755955881091,0.99009576,115030.0,115020.0,0.3059894]
[1755955882891,0.99009576,115030.0,115020.0,0.38407125]
[1755955884399,0.98953576,115030.0,115020.0,0.38407125]
[1755955884696,0.98953576,115030.0,115020.0,0.74487125]
[1755955885893,0.09441426,115030.0,115020.0,0.74487125]
[1755955886096,0.88353418,115030.0,115020.0,0.6667894]
[1755955886997,0.88353418,115030.0,115020.0,1.1667894]
[1755955888088,0.88353418,115030.0,115020.0,1.27632023]
[1755955888286,0.88393418,115030.0,115020.0,1.27632023]
[1755955888502,0.3608,115050.0,115020.0,1.94577792]
[1755955888798,0.36084,115060.0,115050.0,0.1827366]
[1755955888993,0.80956,115060.0,115050.0,0.26095918]
[1755955889196,0.80956,115060.0,115050.0,0.28366918]
[1755955889588,0.8096,115060.0,115050.0,0.28366918]
[1755955890099,1.38649679,115060.0,115050.0,0.28366918]
[1755955890489,1.38749679,115060.0,115050.0,0.28366918]
[1755955891199,1.38749679,115060.0,115050.0,0.2054466]
[1755955891799,1.38749679,115060.0,115050.0,0.2064466]
[1755955891800,1.4897477,115060.0,115050.0,0.2064466]
[1755955893383,1.8505477,115060.0,115050.0,0.08547]
[1755955893586,2.1013477,115060.0,115050.0,0.001]
[1755955895689,1.2918677,115060.0,115050.0,0.001]
[1755955895894,2.1013077,115060.0,115050.0,0.001]
[1755955896903,1.2918677,115060.0,115050.0,0.001]
[1755955897199,2.1010277,115060.0,115050.0,0.001]
[1755955898000,2.1010277,115060.0,115050.0,0.02371]
[1755955898594,2.1002277,115060.0,115050.0,0.02371]
[1755955899996,2.1002277,115060.0,115050.0,0.001]
[1755955901400,0.80103001,115060.0,115050.0,0.02371]
[1755955901596,1.2910677,115060.0,115050.0,0.02371]
[1755955901803,2.1001477,115060.0,115050.0,0.02371]
[1755955902104,1.61011001,115060.0,115050.0,0.02371]
[1755955902300,2.1001477,115060.0,115050.0,0.02371]
[1755955905101,2.0901477,115060.0,115050.0,0.02371]
[1755955907305,2.0905477,115060.0,115050.0,0.02371]
[1755955907998,2.0905477,115060.0,115050.0,0.03366]
[1755955908199,1.2810677,115060.0,115050.0,0.08547]
[1755955908404,2.0901477,115060.0,115050.0,0.1195]
[1755955908899,2.0901477,115060.0,115050.0,0.08547]
[1755955909101,0.91221091,115060.0,115050.0,0.456447]
[1755955909503,1.4891881,115060.0,115050.0,0.456447]
[1755955910206,1.8499881,115060.0,115050.0,0.456447]
[1755955910801,1.4891881,115060.0,115050.0,0.456447]
[1755955911516,1.4895481,115060.0,115050.0,0.456447]
[1755955912206,0.99951041,115060.0,115050.0,0.456447]
[1755955912511,0.19019041,115060.0,115050.0,0.456447]
[1755955912710,0.99987041,115060.0,115050.0,0.206447]
[1755955913508,0.91293091,115060.0,115050.0,0.53466958]
[1755955915118,0.99987041,115060.0,115050.0,0.53466958]
[1755955915413,0.99987041,115060.0,115050.0,0.456447]
[1755955915606,0.99987041,115060.0,115050.0,0.422417]
[1755955915806,0.99987041,115060.0,115050.0,0.456447]
[1755955916014,1.4899081,115060.0,115050.0,0.456447]
[1755955917115,1.4899081,115060.0,115050.0,0.33547]
[1755955917613,1.4899081,115060.0,115050.0,0.36919]
[1755955917820,0.99987041,115060.0,115050.0,0.1724171]
[1755955918005,0.99987041,115060.0,115050.0,0.2061371]
[1755955918206,0.19019041,115060.0,115050.0,0.2061371]
[1755955918405,1.4895881,115060.0,115050.0,0.11919]
[1755955918813,1.4712981,115060.0,115050.0,0.11919]
[1755955919116,0.98126041,115060.0,115050.0,0.11919]
[1755955919616,1.4712981,115060.0,115050.0,0.11919]
[1755955919811,1.4712981,115060.0,115050.0,0.2061371]
[1755955920011,0.98126041,115060.0,115050.0,0.1724171]
[1755955920210,1.4712981,115060.0,115050.0,0.03366]
[1755955920412,1.29939769,115060.0,115050.0,0.03366]
[1755955920616,1.29939769,115060.0,115050.0,0.12082]
[1755955920617,1.35310719,115060.0,115050.0,0.12082]
[1755955921410,1.71390719,115060.0,115050.0,0.001]
[1755955922218,1.96390719,115060.0,115050.0,0.001]
[1755955922719,1.96470719,115060.0,115050.0,0.001]
[1755955926610,2.01045719,115060.0,115050.0,0.02445]
[1755955926810,2.01045719,115060.0,115050.0,0.001]
[1755955928725,2.02965123,115060.0,115050.0,0.001]
[1755955930324,1.77965123,115060.0,115050.0,0.001]
[1755955931928,1.77885123,115060.0,115050.0,0.001]
[1755955932120,1.28881354,115060.0,115050.0,0.001]
[1755955932321,1.77885123,115060.0,115050.0,0.001]
[1755955933928,0.0869615,115040.0,115030.0,0.03273]
[1755955934123,1.75891919,115040.0,115030.0,0.02345]
[1755955934325,1.75891919,115040.0,115030.0,0.05581]
[1755955934521,1.75891919,115040.0,115030.0,0.10351]
[1755955934924,1.77858154,115040.0,115030.0,0.10351]
[1755955935325,1.78058154,115040.0,115030.0,0.12189]
[1755955935727,1.78158154,115040.0,115030.0,0.12289]
[1755955935929,1.29154385,115040.0,115030.0,0.12289]
[1755955936129,1.78158154,115040.0,115030.0,0.12289]
[1755955939133,1.78158154,115040.0,115030.0,0.02645]
[1755955939333,1.78158154,115040.0,115030.0,0.003]
[1755955939534,1.78158154,115040.0,115030.0,0.02645]
[1755955940333,0.96046154,115040.0,115030.0,0.05881]
[1755955940635,1.78086154,115040.0,115030.0,0.05881]
[1755955942036,1.78086154,115040.0,115030.0,0.03573]
[1755955942837,2.14166154,115040.0,115030.0,0.03573]
[1755955947531,1.65162385,115040.0,115030.0,0.03573]
[1755955947728,2.14166154,115040.0,115030.0,0.03573]
[1755955948937,2.14166154,115040.0,115030.0,0.05891]
[1755955951940,2.14166154,115040.0,115030.0,0.02645]
[1755955954131,2.14166154,115040.0,115030.0,0.0594]
[1755955954640,2.14166154,115040.0,115030.0,0.0929]
[1755955955344,2.14166154,115040.0,115030.0,0.0594]
[1755955955937,2.14166154,115040.0,115030.0,0.0929]
[1755955956137,2.14166154,115040.0,115030.0,0.0594]
[1755955956336,2.14166154,115040.0,115030.0,0.14152287]
[1755955956545,1.65162385,115040.0,115030.0,0.14152287]
[1755955956842,2.14166154,115040.0,115030.0,0.14152287]
[1755955957045,1.78086154,115040.0,115030.0,0.14152287]
[1755955958841,1.78086154,115040.0,115030.0,0.21974545]
[1755955959039,1.78086154,115040.0,115030.0,0.14152287]
[1755955960841,1.78086154,115040.0,115030.0,0.21974545]
[1755955961548,1.29082385,115040.0,115030.0,0.21974545]
[1755955961747,1.78086154,115040.0,115030.0,0.21974545]
[1755955961951,1.29082385,115040.0,115030.0,0.14152287]
[1755955962150,1.29082385,115040.0,115030.0,0.21974545]
[1755955962348,1.78086154,115040.0,115030.0,0.21974545]
[1755955962858,1.76119919,115040.0,115030.0,0.21974545]
[1755955963951,1.76119919,115040.0,115030.0,0.30670755]
[1755955964156,1.2711615,115040.0,115030.0,0.22848497]
[1755955964452,1.2711615,115040.0,115030.0,0.30670755]
[1755955965450,1.2711615,115040.0,115030.0,0.22848497]
[1755955966746,1.2711615,115040.0,115030.0,0.30670755]
[1755955968950,1.2723515,115040.0,115030.0,0.30670755]
[1755955970461,1.76243996,115040.0,115030.0,0.30670755]
[1755955970648,1.78210628,115040.0,115030.0,0.30670755]
[1755955974955,1.18539,115040.0,115030.0,0.30670755]
[1755955975155,1.67547846,115040.0,115030.0,0.30670755]
[1755955975458,1.18539,115040.0,115030.0,0.30670755]
[1755955975654,1.67547846,115040.0,115030.0,0.30670755]
[1755955975851,1.18539,115040.0,115030.0,0.30670755]
[1755955976057,1.67547846,115040.0,115030.0,0.30670755]
[1755955976358,1.18539,115040.0,115030.0,0.30670755]
[1755955976552,1.67547846,115040.0,115030.0,0.30670755]
[1755955976745,1.76243296,115040.0,115030.0,0.24241755]
[1755955976948,1.76243296,115040.0,115030.0,0.21923755]
[1755955977357,1.76243296,115040.0,115030.0,0.20946755]
[1755955978360,1.2723445,115040.0,115030.0,0.20946755]
[1755955978560,1.76243296,115040.0,115030.0,0.20946755]
[1755955979459,1.76243296,115040.0,115030.0,0.13124497]
[1755955979960,1.76362379,115040.0,115030.0,0.13124497]
[1755955980160,1.7751925,115040.0,115030.0,0.13124497]
[1755955980355,1.7751925,115040.0,115030.0,0.14030497]
[1755955980559,1.4143925,115040.0,115030.0,0.14030497]
[1755955981264,0.92430404,115040.0,115030.0,0.14030497]
[1755955981456,1.4143925,115040.0,115030.0,0.14030497]
[1755955981759,1.4143925,115040.0,115030.0,0.16141497]
[1755955982859,1.4143925,115040.0,115030.0,0.22480497]
[1755955983160,1.7751925,115040.0,115030.0,0.13124497]
[1755955984061,1.7751925,115040.0,115030.0,0.20946755]
[1755955984262,1.7751925,115040.0,115030.0,0.13124497]
[1755955984462,1.7751925,115040.0,115030.0,0.20946755]
[1755955985362,1.7751925,115040.0,115030.0,0.12250545]
[1755955986251,1.7751925,115040.0,115030.0,0.20946755]
[1755955987056,1.7751925,115040.0,115030.0,0.12250545]
[1755955987256,1.7751925,115040.0,115030.0,0.04428287]
[1755955987566,1.28510404,115040.0,115030.0,0.04428287]
[1755955987757,1.7751925,115040.0,115030.0,0.04428287]
[1755955987952,1.7751925,115040.0,115030.0,0.13124497]
[1755955989461,1.28510404,115040.0,115030.0,0.04428287]
[1755955989766,1.7751925,115040.0,115030.0,0.12250545]
[1755955989960,1.77638333,115040.0,115030.0,0.12250545]
[1755955990162,1.78261665,115040.0,115030.0,0.12250545]
[1755955991769,1.78261665,115040.0,115030.0,0.20946755]
[1755955992270,1.78261665,115040.0,115030.0,0.12250545]
[1755955992770,1.78261665,115040.0,115030.0,0.20946755]
[1755955992971,2.27270511,115040.0,115030.0,0.04428287]
[1755955993172,2.27270511,115040.0,115030.0,0.02083287]
[1755955994174,2.27270511,115040.0,115030.0,0.04506287]
[1755955995874,1.29252819,115040.0,115030.0,0.04506287]
[1755955996174,1.78261665,115040.0,115030.0,0.04506287]
[1755955996572,1.78261665,115040.0,115030.0,0.12328545]
[1755955998368,1.78261665,115040.0,115030.0,0.04506287]
[1755955999475,1.78334835,115040.0,115030.0,0.04506287]
[1755955999677,1.78450238,115040.0,115030.0,0.04506287]
[1755956002872,2.27459084,115040.0,115030.0,0.04506287]
[1755956003068,2.27459084,115040.0,115030.0,0.02083287]
[1755956006472,2.52459084,115040.0,115030.0,0.02083287]
[1755956006775,0.1201377,115010.0,115000.0,0.27178258]
[1755956006972,1.42146616,115010.0,115000.0,0.19356]
[1755956007375,1.42146616,115010.0,115000.0,0.20715731]
[1755956007679,1.42146616,115010.0,115000.0,0.19356]
[1755956007680,1.44472558,115010.0,115000.0,0.19356]
[1755956007879,0.95463712,115010.0,115000.0,0.68364846]
[1755956008074,1.02438218,115010.0,115000.0,0.68464846]
[1755956008280,1.02438218,115010.0,115000.0,0.68564846]
[1755956008477,1.02638218,115010.0,115000.0,0.19556]